[Event "GER-ch Youth U16 2019"]
[Site "Willingen"]
[Date "2019.06.10"]
[Round "3.1"]
[White "Woelk, Tom-Frederic"]
[Black "Dobrikov, Marco"]
[Result "1-0"]
[ECO "D70"]
[WhiteElo "2239"]
[BlackElo "2281"]
[Annotator "NA"]
[PlyCount "52"]
[EventDate "2019.06.07"]
[EventType "swiss"]
[EventRounds "9"]
[EventCountry "GER"]
[SourceTitle "playchess.com"]
[Source "ChessBase"]
[SourceQuality "1"]
[TimeControl "40/5400+30:1800+30"]

1. d4 {[%emt 0:00:00]} Nf6 {[%emt 0:00:00]} 2. c4 {[%emt 0:00:00]} g6 {[%emt 0:00:00]} 3. f3 {[%emt 0:00:00]} d5 {[%emt 0:01:01]} 4. cxd5 {[%emt 0:00:00]} Nxd5 {[%emt 0:00:05]} 5. e4 {[%emt 0:00:03]} Nb6 {[%emt 0:00:22]} 6. Nc3 {[%emt 0:00:04]} Bg7 {[%emt 0:00:12]} 7. Be3 {[%emt 0:00:06]} O-O {[%emt 0:00:40]} 8. Qd2 {[%emt 0:00:04]} Nc6 {[%emt 0:06:58]} 9. O-O-O {[%emt 0:00:12]} e5 {[%emt 0:05:56]} 10. d5 {[%emt 0:00:06]} Nd4 {[%emt 0:02:07]} 11. f4 {[%emt 0:00:15]} c5 {[%emt 0:03:50]} 12. fxe5 {[%emt 0:00:08]} Bg4 {[%emt 0:01:36]} 13. Re1 {[%emt 0:00:15]} Bxe5 {[%emt 0:00:33]} 14. h3 {[%emt 0:02:08]} Bd7 {[%emt 0:04:30]} 15. Nf3 {[%emt 0:04:43]} Nxf3 {[%emt 0:02:30]} 16. gxf3 {[%emt 0:00:06]} Rc8 {[%emt 0:09:10]} 17. f4 {[%emt 0:02:51]} Bg7 {[%emt 0:00:04]} 18. h4 {[%emt 0:07:29]} Na4 {[%emt 0:05:16]} 19. Nxa4 {[%emt 0:06:50]} Bxa4 {[%emt 0:00:02]} 20. h5 {[%emt 0:02:04]} c4 {[%emt 0:01:11]} 21. e5 {[%emt 0:02:01]} Qc7 {[%emt 0:19:41]} 22. Bd4 {[%emt 0:04:18]} Rfd8 {[%emt 0:05:50]} 23. d6 {[%emt 0:02:06]} Qc6 {[%emt 0:06:03]} 24. Bg2 {[%emt 0:00:24]} Qa6 {[%emt 0:00:21]} 25. hxg6 {[%emt 0:01:23]} hxg6 {[%emt 0:00:25]} 26. Re3 {[%emt 0:09:29]} Bb3 {[%emt 0:02:11] normal} 1-0

[Event "GER-ch Youth U16 2019"]
[Site "Willingen"]
[Date "2019.06.10"]
[Round "3.2"]
[White "Suvorov, Alexander"]
[Black "Knuedel, Torben"]
[Result "1-0"]
[ECO "E94"]
[WhiteElo "2325"]
[BlackElo "2044"]
[Annotator "NA"]
[PlyCount "50"]
[EventDate "2019.06.07"]
[EventType "swiss"]
[EventRounds "9"]
[EventCountry "GER"]
[SourceTitle "playchess.com"]
[Source "ChessBase"]
[SourceQuality "1"]
[TimeControl "40/5400+30:1800+30"]

1. d4 {[%emt 0:00:00]} Nf6 {[%emt 0:00:00]} 2. c4 {[%emt 0:00:00]} d6 {[%emt 0:00:00]} 3. Nc3 {[%emt 0:01:22]} Nbd7 {[%emt 0:00:00]} 4. e4 {[%emt 0:00:43]} e5 {[%emt 0:00:08]} 5. Nf3 {[%emt 0:01:08]} g6 {[%emt 0:00:46]} 6. Be2 {[%emt 0:00:43]} Bg7 {[%emt 0:00:04]} 7. O-O {[%emt 0:01:07]} O-O {[%emt 0:00:11]} 8. Be3 {[%emt 0:00:17]} Re8 {[%emt 0:01:09]} 9. d5 {[%emt 0:00:47]} Nh5 {[%emt 0:00:13]} 10. g3 {[%emt 0:04:16]} Bf8 {[%emt 0:02:21]} 11. Ne1 {[%emt 0:06:11]} Ng7 {[%emt 0:00:05]} 12. Nd3 {[%emt 0:06:25]} f5 {[%emt 0:00:30]} 13. f3 {[%emt 0:06:26]} Be7 {[%emt 0:01:42]} 14. Qd2 {[%emt 0:03:03]} a5 {[%emt 0:00:05]} 15. Rac1 {[%emt 0:03:17]} Rf8 {[%emt 0:07:32]} 16. b3 {[%emt 0:06:38]} b6 {[%emt 0:02:49]} 17. b4 {[%emt 0:07:15]} fxe4 {[%emt 0:09:39]} 18. fxe4 {[%emt 0:04:45]} Nf6 {[%emt 0:00:23]} 19. bxa5 {[%emt 0:06:49]} Bh3 {[%emt 0:18:46]} 20. Rf2 {[%emt 0:01:42]} Rxa5 {[%emt 0:02:10]} 21. Nb4 {[%emt 0:02:41]} Ra3 {[%emt 0:01:33]} 22. Nc6 {[%emt 0:02:50]} Qe8 {[%emt 0:06:15]} 23. Bg5 {[%emt 0:05:31]} Kh8 {[%emt 0:11:04]} 24. Nxe7 {[%emt 0:10:26]} Qxe7 {[%emt 0:00:23]} 25. Qe3 {[%emt 0:01:31]} Bd7 {[%emt 0:06:32] normal} 1-0

[Event "GER-ch Youth U16 2019"]
[Site "Willingen"]
[Date "2019.06.10"]
[Round "3.3"]
[White "Koellner, Ruben Gideon"]
[Black "Hommel, Niclas"]
[Result "1-0"]
[ECO "A48"]
[WhiteElo "2299"]
[BlackElo "1953"]
[Annotator "NA"]
[PlyCount "41"]
[EventDate "2019.06.07"]
[EventType "swiss"]
[EventRounds "9"]
[EventCountry "GER"]
[SourceTitle "playchess.com"]
[Source "ChessBase"]
[SourceQuality "1"]
[TimeControl "40/5400+30:1800+30"]

1. d4 {[%emt 0:00:00]} Nf6 {[%emt 0:00:00]} 2. Nf3 {[%emt 0:00:00]} g6 {[%emt 0:00:00]} 3. Nbd2 {[%emt 0:00:04]} d5 {[%emt 0:00:00]} 4. e3 {[%emt 0:00:10]} Bg7 {[%emt 0:00:30]} 5. b4 {[%emt 0:00:36]} O-O {[%emt 0:00:40]} 6. c4 {[%emt 0:02:12]} c6 {[%emt 0:01:14]} 7. Bb2 {[%emt 0:00:39]} Bg4 {[%emt 0:06:16]} 8. Be2 {[%emt 0:01:33]} Nbd7 {[%emt 0:04:35]} 9. O-O {[%emt 0:01:49]} Rc8 {[%emt 0:02:23]} 10. h3 {[%emt 0:05:12]} Bxf3 {[%emt 0:00:04]} 11. Nxf3 {[%emt 0:00:13]} Ne4 {[%emt 0:02:23]} 12. Bd3 {[%emt 0:06:00]} Ndf6 {[%emt 0:04:09]} 13. Qb3 {[%emt 0:08:42]} e6 {[%emt 0:17:25]} 14. Rfc1 {[%emt 0:02:52]} b6 {[%emt 0:15:36]} 15. cxd5 {[%emt 0:07:57]} cxd5 {[%emt 0:02:21]} 16. a4 {[%emt 0:00:20]} Nd6 {[%emt 0:05:28]} 17. Ba3 {[%emt 0:03:31]} Rxc1+ {[%emt 0:00:08]} 18. Rxc1 {[%emt 0:00:09]} Qb8 {[%emt 0:00:02]} 19. Ne5 {[%emt 0:06:07]} Rc8 {[%emt 0:01:04]} 20. Nc6 {[%emt 0:03:09]} Qb7 {[%emt 0:00:08]} 21. Ba6 {[%emt 0:01:04] normal} 1-0

[Event "GER-ch Youth U16 2019"]
[Site "Willingen"]
[Date "2019.06.10"]
[Round "3.4"]
[White "Yi, Danny"]
[Black "Koelle, Tobias"]
[Result "1/2-1/2"]
[ECO "C50"]
[WhiteElo "2205"]
[BlackElo "2215"]
[Annotator "NA"]
[PlyCount "37"]
[EventDate "2019.06.07"]
[EventType "swiss"]
[EventRounds "9"]
[EventCountry "GER"]
[SourceTitle "playchess.com"]
[Source "ChessBase"]
[SourceQuality "1"]
[TimeControl "40/5400+30:1800+30"]

1. e4 {[%emt 0:00:00]} e5 {[%emt 0:00:00]} 2. Nf3 {[%emt 0:00:00]} Nc6 {[%emt 0:00:00]} 3. Bc4 {[%emt 0:00:00]} Bc5 {[%emt 0:00:00]} 4. Nc3 {[%emt 0:00:10]} Nf6 {[%emt 0:00:29]} 5. d3 {[%emt 0:00:47]} d6 {[%emt 0:00:09]} 6. Bg5 {[%emt 0:00:23]} h6 {[%emt 0:00:08]} 7. Bxf6 {[%emt 0:00:04]} Qxf6 {[%emt 0:00:05]} 8. Nd5 {[%emt 0:00:05]} Qd8 {[%emt 0:00:06]} 9. c3 {[%emt 0:00:10]} a6 {[%emt 0:00:30]} 10. d4 {[%emt 0:01:23]} exd4 {[%emt 0:03:17]} 11. cxd4 {[%emt 0:00:07]} Ba7 {[%emt 0:00:17]} 12. h3 {[%emt 0:00:39]} O-O {[%emt 0:00:25]} 13. O-O {[%emt 0:00:43]} Ne7 {[%emt 0:03:41]} 14. Rc1 {[%emt 0:01:59]} Nxd5 {[%emt 0:02:09]} 15. Bxd5 {[%emt 0:01:54]} c6 {[%emt 0:00:17]} 16. Bb3 {[%emt 0:00:21]} d5 {[%emt 0:03:22]} 17. exd5 {[%emt 0:01:25]} cxd5 {[%emt 0:00:28]} 18. Qd3 {[%emt 0:01:38]} g6 {[%emt 0:16:53]} 19. Rfe1 {[%emt 0:12:03] normal} 1/2-1/2

[Event "GER-ch Youth U16 2019"]
[Site "Willingen"]
[Date "2019.06.10"]
[Round "3.5"]
[White "Gutkin, Ilya"]
[Black "Post, Hugo"]
[Result "1/2-1/2"]
[ECO "A13"]
[WhiteElo "2041"]
[BlackElo "2113"]
[Annotator "ChessBase"]
[PlyCount "58"]
[EventDate "2019.06.07"]
[EventType "swiss"]
[EventRounds "9"]
[EventCountry "GER"]
[SourceTitle "playchess.com"]
[Source "ChessBase"]
[SourceQuality "1"]
[TimeControl "40/5400+30:1800+30"]

1. Nf3 {[%emt 0:00:00]} Nf6 {[%emt 0:00:00]} 2. c4 {[%emt 0:00:00]} e6 {[%emt 0:00:14]} 3. g3 {[%emt 0:00:02]} d5 {[%emt 0:00:29]} 4. Bg2 {[%emt 0:00:07]} dxc4 {[%emt 0:00:17]} 5. Qa4+ {[%emt 0:00:05]} Bd7 {[%emt 0:01:05]} 6. Qxc4 {[%emt 0:00:15]} c5 {[%emt 0:00:23]} 7. d3 {[%emt 0:06:28]} Bc6 {[%emt 0:01:21]} 8. O-O {[%emt 0:01:05]} Be7 {[%emt 0:03:25]} 9. b3 {[%emt 0:01:44]} O-O {[%emt 0:05:29]} 10. Bb2 {[%emt 0:01:48]} Nbd7 {[%emt 0:02:25]} 11. Nbd2 {[%emt 0:00:53]} Rc8 {[%emt 0:01:56]} 12. Qc2 {[%emt 0:07:17]} b5 {[%emt 0:04:52]} 13. Rac1 {[%emt 0:01:35]} Qb6 {[%emt 0:08:47]} 14. e4 {[%emt 0:22:49]} Rfd8 {[%emt 0:10:07]} 15. Rfd1 {[%emt 0:01:15]} Qb7 {[%emt 0:03:38]} 16. Qb1 {[%emt 0:04:36]} a5 {[%emt 0:07:06]} 17. Ne1 {[%emt 0:07:29]} Ra8 {[%emt 0:09:06]} 18. Nc2 {[%emt 0:04:12]} a4 {[%emt 0:01:13]} 19. Ne3 {[%emt 0:02:27]} axb3 {[%emt 0:01:16]} 20. axb3 {[%emt 0:00:07]} Rac8 {[%emt 0:03:03]} 21. Nf3 {[%emt 0:07:15]} h6 {[%emt 0:03:51]} 22. Bc3 {[%emt 0:05:50]} Rb8 {[%emt 0:02:19]} 23. Ne1 {[%emt 0:00:54]} Qa8 {[%emt 0:03:22]} 24. Qa1 {[%emt 0:01:07]} Rb6 {[%emt 0:03:04]} 25. Qxa8 {[%emt 0:03:21]} Rxa8 {[%emt 0:00:01]} 26. Ra1 {[%emt 0:00:23]} Rba6 {[%emt 0:00:07]} 27. Rxa6 {[%emt 0:00:09]} Rxa6 {[%emt 0:00:02]} 28. Ra1 {[%emt 0:00:07]} Rxa1 {[%emt 0:02:05]} 29. Bxa1 {[%emt 0:00:05]} Nb8 {[%emt 0:00:27] normal} 1/2-1/2

[Event "GER-ch Youth U16 2019"]
[Site "Willingen"]
[Date "2019.06.10"]
[Round "3.6"]
[White "Burian, Simon"]
[Black "Wachinger, Nikolas"]
[Result "0-1"]
[ECO "B96"]
[WhiteElo "2001"]
[BlackElo "2311"]
[Annotator "NA"]
[PlyCount "42"]
[EventDate "2019.06.07"]
[EventType "swiss"]
[EventRounds "9"]
[EventCountry "GER"]
[SourceTitle "playchess.com"]
[Source "ChessBase"]
[SourceQuality "1"]
[TimeControl "40/5400+30:1800+30"]

1. e4 {[%emt 0:00:00]} c5 {[%emt 0:00:00]} 2. Nf3 {[%emt 0:00:00]} d6 {[%emt 0:00:00]} 3. d4 {[%emt 0:00:00]} Nf6 {[%emt 0:00:02]} 4. Nc3 {[%emt 0:00:09]} cxd4 {[%emt 0:00:08]} 5. Nxd4 {[%emt 0:00:06]} a6 {[%emt 0:00:13]} 6. Bg5 {[%emt 0:00:27]} e6 {[%emt 0:00:11]} 7. f4 {[%emt 0:00:20]} h6 {[%emt 0:01:11]} 8. Bh4 {[%emt 0:00:41]} Qb6 {[%emt 0:00:07]} 9. a3 {[%emt 0:01:57]} Be7 {[%emt 0:02:58]} 10. Bf2 {[%emt 0:01:21]} Qc7 {[%emt 0:00:36]} 11. Qe2 {[%emt 0:02:35]} Nbd7 {[%emt 0:02:46]} 12. O-O-O {[%emt 0:02:38]} b5 {[%emt 0:01:15]} 13. g4 {[%emt 0:04:06]} Bb7 {[%emt 0:15:55]} 14. g5 {[%emt 0:03:49]} hxg5 {[%emt 0:12:52]} 15. fxg5 {[%emt 0:00:20]} Nh5 {[%emt 0:00:12]} 16. g6 {[%emt 0:00:58]} Ne5 {[%emt 0:07:39]} 17. gxf7+ {[%emt 0:01:56]} Kxf7 {[%emt 0:00:53]} 18. Be3 {[%emt 0:06:44]} Nf6 {[%emt 0:05:19]} 19. h4 {[%emt 0:08:55]} Nxe4 {[%emt 0:19:52]} 20. Nxe4 {[%emt 0:00:45]} Bxe4 {[%emt 0:03:04]} 21. Rg1 {[%emt 0:02:46]} Bf6 {[%emt 0:07:01] normal} 0-1

[Event "GER-ch Youth U16 2019"]
[Site "Willingen"]
[Date "2019.06.10"]
[Round "3.7"]
[White "Nguyen, Alex Dac-Vuong"]
[Black "Richter, Nils"]
[Result "1/2-1/2"]
[ECO "B47"]
[WhiteElo "2287"]
[BlackElo "2115"]
[Annotator "NA"]
[PlyCount "50"]
[EventDate "2019.06.07"]
[EventType "swiss"]
[EventRounds "9"]
[EventCountry "GER"]
[SourceTitle "playchess.com"]
[Source "ChessBase"]
[SourceQuality "1"]
[TimeControl "40/5400+30:1800+30"]

1. e4 {[%emt 0:00:00]} c5 {[%emt 0:00:00]} 2. Nf3 {[%emt 0:00:00]} e6 {[%emt 0:00:00]} 3. d4 {[%emt 0:00:00]} cxd4 {[%emt 0:00:00]} 4. Nxd4 {[%emt 0:00:00]} Nc6 {[%emt 0:00:06]} 5. Nc3 {[%emt 0:00:02]} Qc7 {[%emt 0:00:11]} 6. Be2 {[%emt 0:00:10]} a6 {[%emt 0:00:27]} 7. f4 {[%emt 0:00:25]} d6 {[%emt 0:02:57]} 8. Be3 {[%emt 0:00:31]} Nf6 {[%emt 0:01:56]} 9. Qd2 {[%emt 0:00:22]} Be7 {[%emt 0:14:18]} 10. O-O-O {[%emt 0:00:14]} O-O {[%emt 0:19:06]} 11. Nxc6 {[%emt 0:15:34]} bxc6 {[%emt 0:01:38]} 12. g4 {[%emt 0:11:39]} d5 {[%emt 0:03:04]} 13. exd5 {[%emt 0:08:55]} Nxd5 {[%emt 0:03:00]} 14. Nxd5 {[%emt 0:01:36]} cxd5 {[%emt 0:00:25]} 15. g5 {[%emt 0:03:21]} a5 {[%emt 0:04:31]} 16. h4 {[%emt 0:08:28]} Ba6 {[%emt 0:04:15]} 17. Bg4 {[%emt 0:07:54]} a4 {[%emt 0:04:49]} 18. Rh3 {[%emt 0:04:50]} a3 {[%emt 0:02:05]} 19. b3 {[%emt 0:00:09]} Rfc8 {[%emt 0:01:44]} 20. Bd4 {[%emt 0:00:33]} Bd6 {[%emt 0:02:31]} 21. Rf3 {[%emt 0:00:56]} Rab8 {[%emt 0:06:23]} 22. h5 {[%emt 0:04:42]} Rb4 {[%emt 0:01:16]} 23. c3 {[%emt 0:01:27]} Rxd4 {[%emt 0:00:05]} 24. Qxd4 {[%emt 0:00:08]} Be2 {[%emt 0:00:04]} 25. h6 {[%emt 0:08:05]} e5 {[%emt 0:06:24] normal} 1/2-1/2

[Event "GER-ch Youth U16 2019"]
[Site "Willingen"]
[Date "2019.06.10"]
[Round "3.8"]
[White "Liebold, Aaron"]
[Black "Kopylov, Daniel"]
[Result "1/2-1/2"]
[ECO "B63"]
[WhiteElo "1870"]
[BlackElo "2263"]
[Annotator "ChessBase"]
[PlyCount "57"]
[EventDate "2019.06.07"]
[EventType "swiss"]
[EventRounds "9"]
[EventCountry "GER"]
[SourceTitle "playchess.com"]
[Source "ChessBase"]
[SourceQuality "1"]
[TimeControl "40/5400+30:1800+30"]

1. e4 {[%emt 0:00:00]} c5 {[%emt 0:00:00]} 2. Nf3 {[%emt 0:00:00]} d6 {[%emt 0:00:00]} 3. d4 {[%emt 0:00:00]} cxd4 {[%emt 0:00:17]} 4. Nxd4 {[%emt 0:00:23]} Nf6 {[%emt 0:00:17]} 5. Nc3 {[%emt 0:00:15]} Nc6 {[%emt 0:00:14]} 6. Bg5 {[%emt 0:00:16]} e6 {[%emt 0:00:15]} 7. Qd2 {[%emt 0:00:51]} Nxd4 {[%emt 0:00:23]} 8. Qxd4 {[%emt 0:00:12]} Be7 {[%emt 0:00:06]} 9. O-O-O {[%emt 0:00:34]} O-O {[%emt 0:00:18]} 10. f4 {[%emt 0:01:02]} Qa5 {[%emt 0:00:18]} 11. Bc4 {[%emt 0:00:56]} Bd7 {[%emt 0:06:02]} 12. e5 {[%emt 0:03:19]} dxe5 {[%emt 0:03:01]} 13. Qxe5 {[%emt 0:01:45]} Qb6 {[%emt 0:02:49]} 14. f5 {[%emt 0:02:58]} Rad8 {[%emt 0:22:55]} 15. fxe6 {[%emt 0:08:05]} Bxe6 {[%emt 0:01:37]} 16. Bxe6 {[%emt 0:01:25]} Qxe6 {[%emt 0:01:59]} 17. Qxe6 {[%emt 0:01:49]} fxe6 {[%emt 0:00:07]} 18. Rde1 {[%emt 0:05:27]} Kf7 {[%emt 0:01:58]} 19. Rhf1 {[%emt 0:02:34]} Rd4 {[%emt 0:04:10]} 20. h3 {[%emt 0:06:59]} Bb4 {[%emt 0:09:53]} 21. Be3 {[%emt 0:05:31]} Bxc3 {[%emt 0:01:17]} 22. bxc3 {[%emt 0:00:15]} Ra4 {[%emt 0:02:39]} 23. Kb2 {[%emt 0:02:15]} Rc8 {[%emt 0:01:21]} 24. Bd4 {[%emt 0:02:10]} Ke7 {[%emt 0:02:16]} 25. Re5 {[%emt 0:03:50]} h6 {[%emt 0:14:54]} 26. Rfe1 {[%emt 0:04:17]} Rc6 {[%emt 0:01:52]} 27. Rb5 {[%emt 0:04:08]} b6 {[%emt 0:02:20]} 28. g4 {[%emt 0:03:47]} Ne8 {[%emt 0:03:56]} 29. Rh5 {[%emt 0:08:29] normal} 1/2-1/2

[Event "GER-ch Youth U16 2019"]
[Site "Willingen"]
[Date "2019.06.10"]
[Round "3.9"]
[White "Stork, Oliver"]
[Black "Boder, Jan"]
[Result "1-0"]
[ECO "B39"]
[WhiteElo "2224"]
[BlackElo "2123"]
[Annotator "NA"]
[PlyCount "73"]
[EventDate "2019.06.07"]
[EventType "swiss"]
[EventRounds "9"]
[EventCountry "GER"]
[SourceTitle "playchess.com"]
[Source "ChessBase"]
[SourceQuality "1"]
[TimeControl "40/5400+30:1800+30"]

1. e4 {[%emt 0:00:00]} c5 {[%emt 0:00:20]} 2. Nf3 {[%emt 0:00:00]} Nc6 {[%emt 0:00:11]} 3. d4 {[%emt 0:00:00]} cxd4 {[%emt 0:00:04]} 4. Nxd4 {[%emt 0:00:00]} g6 {[%emt 0:00:19]} 5. c4 {[%emt 0:00:05]} Bg7 {[%emt 0:00:10]} 6. Be3 {[%emt 0:00:06]} Nf6 {[%emt 0:00:07]} 7. Nc3 {[%emt 0:00:06]} Ng4 {[%emt 0:00:09]} 8. Qxg4 {[%emt 0:00:08]} Nxd4 {[%emt 0:00:04]} 9. Qd1 {[%emt 0:00:08]} Ne6 {[%emt 0:00:04]} 10. Rc1 {[%emt 0:00:45]} Qa5 {[%emt 0:00:24]} 11. Qd2 {[%emt 0:09:29]} b6 {[%emt 0:02:14]} 12. Qd5 {[%emt 0:11:49]} Qxd5 {[%emt 0:03:13]} 13. cxd5 {[%emt 0:00:22]} Nc5 {[%emt 0:00:44]} 14. f3 {[%emt 0:20:45]} Ba6 {[%emt 0:16:04]} 15. Bxa6 {[%emt 0:00:43]} Nxa6 {[%emt 0:01:42]} 16. Ke2 {[%emt 0:00:06]} d6 {[%emt 0:01:55]} 17. a3 {[%emt 0:11:34]} Kd7 {[%emt 0:04:16]} 18. b4 {[%emt 0:07:49]} Bxc3 {[%emt 0:00:58]} 19. Rxc3 {[%emt 0:00:06]} Rac8 {[%emt 0:00:22]} 20. Kd3 {[%emt 0:01:04]} Rxc3+ {[%emt 0:00:19]} 21. Kxc3 {[%emt 0:00:05]} Rc8+ {[%emt 0:00:06]} 22. Kd3 {[%emt 0:05:42]} e6 {[%emt 0:00:40]} 23. dxe6+ {[%emt 0:01:52]} Kxe6 {[%emt 0:00:53]} 24. h4 {[%emt 0:11:00]} Nb8 {[%emt 0:03:59]} 25. g4 {[%emt 0:07:59]} d5 {[%emt 0:03:06]} 26. f4 {[%emt 0:04:10]} dxe4+ {[%emt 0:00:44]} 27. Kxe4 {[%emt 0:00:06]} f5+ {[%emt 0:01:11]} 28. gxf5+ {[%emt 0:00:05]} gxf5+ {[%emt 0:00:04]} 29. Kd3 {[%emt 0:00:17]} Rg8 {[%emt 0:00:48]} 30. Rc1 {[%emt 0:02:30]} Kd6 {[%emt 0:00:16]} 31. a4 {[%emt 0:03:12]} Rg4 {[%emt 0:01:05]} 32. Rc8 {[%emt 0:01:24]} Na6 {[%emt 0:05:41]} 33. b5 {[%emt 0:01:48]} Nc5+ {[%emt 0:02:32]} 34. Bxc5+ {[%emt 0:00:57]} bxc5 {[%emt 0:00:04]} 35. Ra8 {[%emt 0:00:37]} Rxf4 {[%emt 0:01:15]} 36. Rxa7 {[%emt 0:00:04]} Rxh4 {[%emt 0:00:09]} 37. a5 {[%emt 0:00:19] normal} 1-0

[Event "GER-ch Youth U16 2019"]
[Site "Willingen"]
[Date "2019.06.10"]
[Round "3.10"]
[White "Rietschel, Tilo"]
[Black "Roehr, Tobias"]
[Result "1-0"]
[ECO "B44"]
[WhiteElo "2005"]
[BlackElo "2208"]
[Annotator "NA"]
[PlyCount "39"]
[EventDate "2019.06.07"]
[EventType "swiss"]
[EventRounds "9"]
[EventCountry "GER"]
[SourceTitle "playchess.com"]
[Source "ChessBase"]
[SourceQuality "1"]
[TimeControl "40/5400+30:1800+30"]

1. e4 {[%emt 0:00:00]} c5 {[%emt 0:00:00]} 2. Nf3 {[%emt 0:00:00]} e6 {[%emt 0:00:00]} 3. d4 {[%emt 0:00:00]} cxd4 {[%emt 0:00:00]} 4. Nxd4 {[%emt 0:00:00]} Nc6 {[%emt 0:00:00]} 5. Nxc6 {[%emt 0:00:00]} bxc6 {[%emt 0:00:02]} 6. Bd3 {[%emt 0:00:00]} Bc5 {[%emt 0:07:57]} 7. O-O {[%emt 0:02:18]} e5 {[%emt 0:04:34]} 8. Qe2 {[%emt 0:06:33]} Ne7 {[%emt 0:05:35]} 9. b3 {[%emt 0:13:14]} d6 {[%emt 0:09:53]} 10. Kh1 {[%emt 0:15:40]} Ng6 {[%emt 0:04:26]} 11. Bd2 {[%emt 0:12:39]} Qf6 {[%emt 0:07:56]} 12. b4 {[%emt 0:03:39]} Bb6 {[%emt 0:02:30]} 13. a4 {[%emt 0:12:40]} Nf4 {[%emt 0:06:31]} 14. Bxf4 {[%emt 0:02:06]} exf4 {[%emt 0:01:55]} 15. Nd2 {[%emt 0:01:29]} O-O {[%emt 0:04:02]} 16. Rac1 {[%emt 0:17:11]} Bd4 {[%emt 0:02:36]} 17. b5 {[%emt 0:04:16]} cxb5 {[%emt 0:02:34]} 18. axb5 {[%emt 0:00:09]} Re8 {[%emt 0:01:42]} 19. Bc4 {[%emt 0:01:23]} Bb7 {[%emt 0:00:50]} 20. Qd3 {[%emt 0:00:43] normal} 1-0

[Event "GER-ch Youth U16 2019"]
[Site "Willingen"]
[Date "2019.06.10"]
[Round "3.11"]
[White "Koehler, Lukas"]
[Black "Fromm, Marius"]
[Result "0-1"]
[ECO "C50"]
[WhiteElo "2068"]
[BlackElo "2038"]
[Annotator "NA"]
[PlyCount "32"]
[EventDate "2019.06.07"]
[EventType "swiss"]
[EventRounds "9"]
[EventCountry "GER"]
[SourceTitle "playchess.com"]
[Source "ChessBase"]
[SourceQuality "1"]
[TimeControl "40/5400+30:1800+30"]

1. e4 {[%emt 0:00:00]} e5 {[%emt 0:00:00]} 2. Nf3 {[%emt 0:00:00]} Nc6 {[%emt 0:00:00]} 3. Bc4 {[%emt 0:00:00]} Bc5 {[%emt 0:00:00]} 4. O-O {[%emt 0:00:12]} Nf6 {[%emt 0:01:27]} 5. d4 {[%emt 0:00:40]} Bxd4 {[%emt 0:00:25]} 6. Nxd4 {[%emt 0:00:06]} Nxd4 {[%emt 0:00:11]} 7. f4 {[%emt 0:00:17]} d6 {[%emt 0:00:26]} 8. fxe5 {[%emt 0:00:35]} dxe5 {[%emt 0:00:12]} 9. Bg5 {[%emt 0:00:32]} Qe7 {[%emt 0:02:32]} 10. Na3 {[%emt 0:24:03]} Bd7 {[%emt 0:07:59]} 11. c3 {[%emt 0:10:00]} Ne6 {[%emt 0:00:09]} 12. Bxe6 {[%emt 0:08:50]} Bxe6 {[%emt 0:10:45]} 13. Kh1 {[%emt 0:04:40]} Qd7 {[%emt 0:14:32]} 14. Bxf6 {[%emt 0:16:15]} gxf6 {[%emt 0:00:20]} 15. Qf3 {[%emt 0:01:50]} O-O-O {[%emt 0:01:21]} 16. Qxf6 {[%emt 0:01:45]} Qd6 {[%emt 0:10:11] normal} 0-1

[Event "GER-ch Youth U16 2019"]
[Site "Willingen"]
[Date "2019.06.10"]
[Round "3.12"]
[White "Biermann, Florian"]
[Black "Trifan, Andrei Ioan"]
[Result "1/2-1/2"]
[ECO "A20"]
[WhiteElo "2018"]
[BlackElo "2268"]
[Annotator "ChessBase"]
[PlyCount "51"]
[EventDate "2019.06.07"]
[EventType "swiss"]
[EventRounds "9"]
[EventCountry "GER"]
[SourceTitle "playchess.com"]
[Source "ChessBase"]
[SourceQuality "1"]
[TimeControl "40/5400+30:1800+30"]

1. c4 {[%emt 0:00:00]} e5 {[%emt 0:00:00]} 2. g3 {[%emt 0:00:00]} Nc6 {[%emt 0:00:00]} 3. Bg2 {[%emt 0:00:00]} f5 {[%emt 0:00:17]} 4. Nc3 {[%emt 0:00:30]} Nf6 {[%emt 0:00:12]} 5. d3 {[%emt 0:01:04]} Bb4 {[%emt 0:00:16]} 6. Bd2 {[%emt 0:00:43]} O-O {[%emt 0:01:03]} 7. e3 {[%emt 0:04:18]} Bxc3 {[%emt 0:07:37]} 8. Bxc3 {[%emt 0:00:06]} d5 {[%emt 0:01:01]} 9. Ne2 {[%emt 0:16:30]} Be6 {[%emt 0:13:33]} 10. b3 {[%emt 0:04:07]} Qe8 {[%emt 0:09:05]} 11. Qd2 {[%emt 0:09:10]} Rd8 {[%emt 0:05:24]} 12. Qb2 {[%emt 0:02:35]} d4 {[%emt 0:09:23]} 13. exd4 {[%emt 0:03:41]} exd4 {[%emt 0:00:22]} 14. Bd2 {[%emt 0:00:16]} Bf7 {[%emt 0:03:58]} 15. Bf4 {[%emt 0:16:18]} Bh5 {[%emt 0:00:33]} 16. f3 {[%emt 0:08:48]} Ne5 {[%emt 0:03:29]} 17. Bxe5 {[%emt 0:01:22]} Qxe5 {[%emt 0:00:03]} 18. O-O-O {[%emt 0:02:00]} Qe3+ {[%emt 0:02:48]} 19. Qd2 {[%emt 0:03:40]} Rfe8 {[%emt 0:00:17]} 20. Nf4 {[%emt 0:02:06]} Bxf3 {[%emt 0:02:32]} 21. Qxe3 {[%emt 0:01:41]} Rxe3 {[%emt 0:00:02]} 22. Bxf3 {[%emt 0:01:32]} Rxf3 {[%emt 0:00:03]} 23. Ne6 {[%emt 0:00:14]} Rd7 {[%emt 0:02:00]} 24. Rhf1 {[%emt 0:02:41]} Rxf1 {[%emt 0:02:08]} 25. Rxf1 {[%emt 0:00:05]} g6 {[%emt 0:00:52]} 26. Rf4 {[%emt 0:02:57] normal} 1/2-1/2

[Event "GER-ch Youth U16 2019"]
[Site "Willingen"]
[Date "2019.06.10"]
[Round "3.13"]
[White "Jeschke, Jan"]
[Black "Pahl, Erik"]
[Result "1-0"]
[ECO "B00"]
[WhiteElo "1915"]
[BlackElo "2113"]
[Annotator "NA"]
[PlyCount "36"]
[EventDate "2019.06.07"]
[EventType "swiss"]
[EventRounds "9"]
[EventCountry "GER"]
[SourceTitle "playchess.com"]
[Source "ChessBase"]
[SourceQuality "1"]
[TimeControl "40/5400+30:1800+30"]

1. e4 {[%emt 0:00:00]} Nc6 {[%emt 0:00:00]} 2. d4 {[%emt 0:00:00]} d5 {[%emt 0:00:00]} 3. e5 {[%emt 0:00:07]} Bf5 {[%emt 0:00:00]} 4. c3 {[%emt 0:00:24]} f6 {[%emt 0:00:00]} 5. Nf3 {[%emt 0:02:01]} e6 {[%emt 0:00:16]} 6. Be2 {[%emt 0:04:54]} Qd7 {[%emt 0:02:37]} 7. Be3 {[%emt 0:01:54]} h5 {[%emt 0:03:08]} 8. Nbd2 {[%emt 0:00:46]} Nh6 {[%emt 0:00:34]} 9. b4 {[%emt 0:09:19]} Ng4 {[%emt 0:07:54]} 10. Nb3 {[%emt 0:00:22]} fxe5 {[%emt 0:06:06]} 11. b5 {[%emt 0:00:33]} Nd8 {[%emt 0:07:40]} 12. Nxe5 {[%emt 0:00:41]} Nxe5 {[%emt 0:00:05]} 13. dxe5 {[%emt 0:00:10]} Nf7 {[%emt 0:02:14]} 14. f4 {[%emt 0:06:33]} h4 {[%emt 0:08:04]} 15. a4 {[%emt 0:04:08]} Be7 {[%emt 0:05:46]} 16. Nd4 {[%emt 0:09:02]} g6 {[%emt 0:03:22]} 17. Bf3 {[%emt 0:04:00]} c5 {[%emt 0:10:36]} 18. Nxf5 {[%emt 0:09:56]} gxf5 {[%emt 0:01:33] normal} 1-0